[Event "Kvika Banki League Iceland 2022-23"]
[Site "Reykjavik"]
[Date "2022.10.15"]
[Round "4.20"]
[White "Thorhallsson, Throstur"]
[Black "Bjornsson, Sigurbjorn"]
[Result "1-0"]
[ECO "B70"]
[WhiteElo "2396"]
[BlackElo "2308"]
[Annotator "TA"]
[PlyCount "75"]
[EventDate "2022.10.13"]
[EventType "team-tourn"]
[EventCountry "ISL"]
[SourceTitle "playchess.com"]
[Source "ChessBase"]
[SourceQuality "1"]
[TimeControl "5400+30"]

{[%evp 19,75,-6,21,16,39,34,45,41,34,25,41,32,84,81,93,78,186,181,220,235,211,217,248,255,386,386,432,434,432,433,407,417,544,552,555,550,595,593,589,591,613,584,561,601,599,606,621,613,626,626,669,670,716,714,1066,1059,29980,29977]} 1. e4 {[%emt 0:00:39]} c5 {[%emt 0:00:06]} 2. Nf3 {[%emt 0:00:35]} d6 {[%emt 0:00:05]} 3. d4 {[%emt 0:00:18]} cxd4 {[%emt 0:00:04]} 4. Nxd4 {[%emt 0:00:06]} Nf6 {[%emt 0:00:03]} 5. Nc3 {[%emt 0:00:10]} g6 {[%emt 0:00:02]} 6. Be2 {[%emt 0:00:29]} Bg7 {[%emt 0:00:06]} 7. O-O {[%emt 0:00:10]} O-O {[%emt 0:00:04]} 8. Bg5 {[%emt 0:00:08]} Nc6 {[%emt 0:00:09]} 9. Nb3 {[%emt 0:00:08]} Be6 {[%emt 0:00:57]} 10. Kh1 {[%emt 0:00:24]} Qc8 {[%emt 0:02:05]} 11. f4 {[%emt 0:03:23] B70: Sicilian Dragon: 6 g3 and 6 Be2 (without a later Be3).} Bg4 {[%emt 0:02:29]} 12. Nd5 {[%emt 0:12:53] Black must now prevent Nxf6+.} Bxe2 {[%emt 0:01:44]} 13. Qxe2 {[%emt 0:00:06] White is slightly better.} Nxd5 {[%emt 0:05:55]} 14. exd5 {[%emt 0:00:43]} Nb4 {[%emt 0:01:11]} 15. Qe4 {[%emt 0:09:41] [#]} (15. Qxe7 $2 Re8 16. Qxd6 Bf8 $19) 15... a5 $146 {[%emt 0:05:06] [#]} (15... Nxc2 $2 16. Rac1 $18) (15... h6 $14) ({Predecessor:} 15... Na6 16. f5 Re8 17. c3 Qd7 18. Rf3 gxf5 19. Qh4 e5 20. Rg3 f4 21. Bf6 {1-0 (21) Bindl,T-Kraft,V Marktredwitz 1984}) 16. c3 $1 $16 {[%emt 0:04:39]} (16. Bxe7 Re8 17. c3 f5 $17) 16... Na6 {[%emt 0:02:12] [#]} 17. f5 $1 {[%emt 0:06:02] Inhibits e6. White has more active pieces.} (17. Bxe7 Re8 18. f5 (18. Nxa5 $2 Nc5 $19) 18... Qd7 $11) 17... gxf5 {[%emt 0:34:05]} (17... a4 $16 18. Qxa4 Nc5) 18. Qxe7 {[%emt 0:10:25]} Qc7 {[%emt 0:19:25]} 19. Qe3 {[%emt 0:06:07]} ({Resist} 19. Rxf5 $6 Rfe8 20. Qxc7 Nxc7 $16) 19... Rae8 {[%emt 0:01:13]} 20. Qh3 {[%emt 0:02:16]} Nc5 {[%emt 0:06:47]} 21. Nd4 {[%emt 0:02:29]} ({Don't play} 21. Rxf5 Nxb3 22. axb3 Re5 23. Rxe5 Bxe5) ({Don't take} 21. Qxf5 $6 Re5 22. Qf4 Rxd5 23. Nxc5 Rxc5 $16) 21... Re5 {[%emt 0:03:44]} (21... Ne4 $142) 22. Nxf5 $18 {[%emt 0:01:27]} f6 {[%emt 0:00:54]} 23. Bf4 {[%emt 0:02:36]} Rxd5 {[%emt 0:00:54]} 24. Nxg7 {[%emt 0:05:23]} Qxg7 {[%emt 0:03:47]} 25. Bh6 {[%emt 0:00:21]} Qe7 {[%emt 0:01:58]} 26. Bxf8 {[%emt 0:02:35]} Kxf8 {[%emt 0:07:32]} 27. Qh6+ {[%emt 0:07:24]} Kg8 {[%emt 0:00:00]} 28. Rxf6 {[%emt 0:03:01]} Nd7 {[%emt 0:00:00]} 29. Rf3 {[%emt 0:02:33][%cal Bf6f3,Bf3g3,Bg3g5][%mdl 32]} Ne5 {[%emt 0:00:00]} 30. Rg3+ {[%emt 0:00:24]} Ng6 {[%emt 0:00:00]} 31. Rf1 {[%emt 0:00:58]} Re5 {[%emt 0:00:00]} 32. h3 {[%emt 0:00:50][%cal Bh2h3,Bh3h4,Bh4h5,Bh5g6,Bg6g7][%mdl 32]} Re6 {[%emt 0:00:41]} 33. Qg5 {[%emt 0:02:55]} Qxg5 {[%emt 0:00:46]} 34. Rxg5 {[%emt 0:00:02]} Re2 {[%emt 0:00:09]} 35. h4 {[%emt 0:01:45]} Kg7 {[%emt 0:02:18]} 36. h5 {[%emt 0:00:35]} Kh6 {[%emt 0:00:03]} 37. hxg6 {[%emt 0:00:21]} Kxg5 {[%emt 0:00:03]} 38. g7 {[%emt 0:00:11] Black did not feel at home in the position after the opening.  Weighted Error Value: White=0.01 (flawless) /Black=0.34} 1-0

[Event "Kvika Banki League Iceland 2022-23"]
[Site "Reykjavik"]
[Date "2022.10.15"]
[Round "4.21"]
[White "Johannesson, Oliver"]
[Black "Johannesson, Ingvar Thor"]
[Result "1/2-1/2"]
[ECO "E46"]
[WhiteElo "2205"]
[BlackElo "2319"]
[Annotator "TA"]
[PlyCount "79"]
[EventDate "2022.10.13"]
[EventType "team-tourn"]
[EventCountry "ISL"]
[SourceTitle "playchess.com"]
[Source "ChessBase"]
[SourceQuality "1"]
[TimeControl "5400+30"]

{[%evp 12,79,0,-6,-18,-7,-10,-25,-28,-5,-10,-17,-15,-18,-13,-37,-25,-62,-9,-47,-21,-37,-4,-16,8,-25,-24,-31,-22,-27,-31,-14,-27,-28,0,-4,0,-8,0,0,28,29,36,27,24,0,0,0,14,-41,-50,-49,-50,-37,-28,-33,0,0,0,-105,0,0,0,0,0,0,0,0,4,0]} 1. d4 {[%emt 0:00:05]} Nf6 {[%emt 0:00:09]} 2. c4 {[%emt 0:00:15]} e6 {[%emt 0:00:15]} 3. Nc3 {[%emt 0:01:16]} Bb4 {[%emt 0:01:06]} 4. e3 {[%emt 0:01:13]} O-O {[%emt 0:01:01]} 5. Nge2 {[%emt 0:01:06]} Re8 {[%emt 0:00:13]} 6. a3 {[%emt 0:00:05]} Bf8 {[%emt 0:00:06]} 7. g3 {[%emt 0:02:47]} d5 {[%emt 0:00:16] Prevents e4. E46: Nimzo-Indian: Rubinstein: 4 e3 0-0 5 Ne2 without early Bd3.} 8. cxd5 {[%emt 0:00:20]} exd5 {[%emt 0:00:16]} 9. Bg2 {[%emt 0:00:06]} a5 {[%emt 0:00:30] Black has an edge.} 10. O-O {[%emt 0:00:55]} Na6 {[%emt 0:01:34][%cal Bb8a6,Ba6c7,Bc7e6,Be6g5][%mdl 32]} 11. Qc2 {[%emt 0:02:26]} c6 {[%emt 0:02:09]} 12. Bd2 {[%emt 0:00:35]} Nc7 {[%emt 0:02:08]} 13. h3 {[%emt 0:08:59]} Ne6 {[%emt 0:11:18] [#]} 14. Rad1 $146 {[%emt 0:08:13]} ({Predecessor:} 14. Kh2 g6 15. Rad1 b6 16. f3 Ba6 17. Be1 c5 18. dxc5 bxc5 19. Bf2 Rb8 20. f4 {0-1 (36) Aleksandrov,A (2639)-Lopez Martinez,J (2570) Lugo 2009}) 14... h5 {[%emt 0:11:23]} (14... g6 $15) 15. Bc1 {[%emt 0:07:55]} Ng5 {[%emt 0:06:57]} 16. Nf4 {[%emt 0:05:44]} Bd6 {[%emt 0:04:48]} 17. f3 $1 {[%emt 0:09:56] Prevents Nge4.} Bd7 {[%emt 0:38:32]} ({Much less strong is} 17... Bxf4 18. exf4 Ngh7 19. g4 $14) 18. Kh2 {[%emt 0:10:47]} h4 {[%emt 0:02:13] [#] ...hxg3+ is the strong threat.} 19. g4 {[%emt 0:02:30]} Ne6 {[%emt 0:02:10] And now ...g5 would win.} 20. Kh1 $1 {[%emt 0:03:44]} Nxf4 {[%emt 0:00:29]} 21. exf4 {[%emt 0:00:02]} Qc7 {[%emt 0:00:12]} 22. f5 {[%emt 0:05:20]} Bf4 {[%emt 0:07:49] Inhibits Bg5.} (22... Bg3 {looks sharper.} 23. Ne2 c5 24. Nxg3 Qxg3 25. dxc5 Bb5) 23. Ne2 {[%emt 0:01:59]} Bxc1 {[%emt 0:00:20]} 24. Nxc1 {[%emt 0:00:08]} Re3 {[%emt 0:01:32]} 25. Nd3 {[%emt 0:01:34]} Bxf5 {[%emt 0:04:50]} 26. gxf5 {[%emt 0:02:10] Threatens to win with Qf2.} Nh5 $1 {[%emt 0:00:01]} 27. Rfe1 {[%emt 0:02:30]} Rae8 {[%emt 0:00:07]} 28. Qf2 {[%emt 0:01:48]} Ng3+ {[%emt 0:00:12]} 29. Kg1 {[%emt 0:00:19]} Re2 {[%emt 0:00:11]} 30. Nc1 {[%emt 0:01:37]} (30. Rd2 $11 Rxe1+ 31. Nxe1) 30... Rxf2 $15 {[%emt 0:01:08]} 31. Rxe8+ {[%emt 0:00:03]} Kh7 {[%emt 0:00:04]} 32. Kxf2 {[%emt 0:00:14][%cal Of5f6]} Nxf5 {[%emt 0:00:50]} 33. Ne2 {[%emt 0:02:07]} Qd7 {[%emt 0:00:50][%mdl 1024] Black has compensation.} 34. Ra8 {[%emt 0:01:19]} b6 {[%emt 0:01:09]} 35. Rc1 {[%emt 0:07:28] [#]} (35. Rd3 $11 {remains equal.}) 35... Nd6 {[%emt 0:00:31]} ({Black should try} 35... c5 $1 $17 {Strongly threatening ...Qe6.} 36. dxc5 Qe6) 36. b4 {[%emt 0:00:50] The position is equal.} Qb7 {[%emt 0:00:39]} 37. Rd8 {[%emt 0:00:57]} Qe7 {[%emt 0:00:10]} 38. Ra8 {[%emt 0:00:16]} Qb7 {[%emt 0:00:18]} 39. Rd8 {[%emt 0:00:06]} Qe7 {[%emt 0:00:03]} 40. Ra8 {[%emt 0:04:23] Weighted Error Value: White=0.13 (very precise) /Black=0.13 (very precise)} 1/2-1/2

[Event "Kvika Banki League Iceland 2022-23"]
[Site "Reykjavik"]
[Date "2022.10.15"]
[Round "4.22"]
[White "Domalchuk-Jonasson, Aleksandr"]
[Black "Halldorsson, Jon Arni"]
[Result "1-0"]
[ECO "D23"]
[WhiteElo "2300"]
[BlackElo "2057"]
[Annotator "TA"]
[PlyCount "122"]
[EventDate "2022.10.13"]
[EventType "team-tourn"]
[EventCountry "ISL"]
[SourceTitle "playchess.com"]
[Source "ChessBase"]
[SourceQuality "1"]
[TimeControl "5400+30"]

{[%evp 15,122,12,20,18,26,27,20,25,20,19,0,0,45,41,45,37,39,39,45,39,37,31,90,81,90,81,95,71,95,65,110,46,42,45,86,34,38,45,39,44,61,64,66,66,63,78,79,27,33,0,0,0,0,0,104,104,87,0,0,0,0,-4,0,0,0,-8,14,16,501,509,498,497,484,468,648,305,355,352,331,325,348,341,350,350,347,338,328,343,335,323,331,325,898,851,29967,29968,29968,29969,29980,29981,29981,29982,29982,29982,29982,29983,29984,29984,29984]} 1. d4 {[%emt 0:00:03]} d5 {[%emt 0:00:11]} 2. c4 {[%emt 0:00:11]} c6 {[%emt 0:00:12]} 3. Nf3 {[%emt 0:00:11]} Nf6 {[%emt 0:00:08]} 4. Qb3 {[%emt 0:00:08]} dxc4 {[%emt 0:00:45]} 5. Qxc4 {[%emt 0:00:07]} Bf5 {[%emt 0:00:05]} 6. g3 {[%emt 0:00:11]} e6 {[%emt 0:00:32]} 7. Bg2 {[%emt 0:00:09]} Be7 {[%emt 0:01:32]} 8. O-O {[%emt 0:00:15]} Nbd7 {[%emt 0:01:19]} 9. Rd1 {[%emt 0:02:20] D23: Queen's Gambit Accepted: 3 Nf3 Nf6 sidelines.} h6 {[%emt 0:01:29]} 10. e3 {[%emt 0:00:53][%cal Be2e3,Be3e4][%mdl 32]} O-O {[%emt 0:00:10]} 11. Qe2 {[%emt 0:00:36] The position is equal. 11.Nc3 is vanishing.} Qa5 {[%emt 0:04:17] 11...Bh7 gains popularity.} 12. Bd2 {[%emt 0:01:24]} Qb6 {[%emt 0:00:26]} 13. Nc3 {[%emt 0:01:26]} Rfe8 {[%emt 0:01:43]} (13... Bc2 $5 {[%cal Rc2d1]}) 14. e4 {[%emt 0:03:23]} Bh7 {[%emt 0:00:15]} 15. Ne1 {[%emt 0:02:59]} Qxd4 {[%emt 0:13:08] [#]} 16. Bxh6 $1 {[%emt 0:00:59]} Qb6 {[%emt 0:06:14]} 17. Be3 {[%emt 0:02:33]} Qa5 {[%emt 0:01:10] [#]} 18. g4 $146 {[%emt 0:11:43][%cal Bg3g4,Bg4g5][%mdl 32]} ({Predecessor:} 18. Nf3 e5 19. Ng5 Bg6 20. h4 Bc5 21. Bd2 Bh5 22. Bf3 Bxf3 23. Qxf3 Qd8 24. Na4 {1-0 (45) Brunello,S (2534)-Halldorsson,J (2163) Reykjavik 2019}) 18... Nf8 {[%emt 0:03:20]} ({Better is} 18... Nc5 $14) 19. g5 {[%emt 0:04:04]} N6d7 {[%emt 0:00:12]} 20. h4 {[%emt 0:02:01]} e5 {[%emt 0:05:35]} 21. a3 {[%emt 0:09:33]} Qc7 {[%emt 0:05:25]} 22. Rac1 {[%emt 0:05:40][%cal Oc3d5]} Bc5 {[%emt 0:07:22] [#]} 23. Bh3 {[%emt 0:04:21]} ({White should try} 23. Nd5 $1 $16 {[%mdl 512]} Qb8 (23... cxd5 24. Rxd5) 24. Nc3 (24. Bxc5 Nxc5 25. Rxc5 Ne6 $16)) 23... Bxe3 $1 $14 {[%emt 0:07:02]} 24. Qxe3 {[%emt 0:03:19][%cal Oc3b5]} Qd8 {[%emt 0:04:57]} 25. Rd6 {[%emt 0:15:04]} (25. Nf3 $16) 25... Qe7 {[%emt 0:01:28]} 26. Rcd1 {[%emt 0:00:04]} Nb6 {[%emt 0:01:27] aiming for ...Nc4.} 27. b3 {[%emt 0:00:48] Against Nc4} Rad8 {[%emt 0:01:14]} 28. Qd2 {[%emt 0:01:36][%cal Rd6d8]} Rxd6 {[%emt 0:00:15]} 29. Qxd6 {[%emt 0:00:04]} Qxd6 {[%emt 0:00:12]} 30. Rxd6 {[%emt 0:00:05]} Nc8 {[%emt 0:01:13]} 31. Rd1 {[%emt 0:01:30]} (31. Bxc8 $16 Rxc8 32. Nd3) 31... f6 {[%emt 0:00:45]} 32. Nf3 {[%emt 0:05:02]} Bg6 {[%emt 0:02:43]} 33. Kg2 {[%emt 0:05:47]} Kf7 {[%emt 0:01:21]} 34. Bg4 {[%emt 0:03:11] And now h5 would win.} Ke7 {[%emt 0:01:01]} (34... Ne6 $11) 35. h5 $16 {[%emt 0:01:11] White is much more active. The black rooks are badly placed.} Bf7 {[%emt 0:02:02]} 36. Nh4 {[%emt 0:02:10]} (36. Bxc8 $16 Rxc8 37. g6 (37. gxf6+ Kxf6 38. Rd6+ Ne6 $17)) 36... fxg5 $11 {[%emt 0:01:07]} 37. Nf5+ {[%emt 0:04:56]} Kf6 {[%emt 0:00:09]} 38. Rd3 $36 {[%emt 0:00:11][%mdl 2048] White has good play.} g6 {[%emt 0:02:33]} 39. hxg6 {[%emt 0:03:53]} Bxg6 {[%emt 0:01:35]} 40. b4 {[%emt 0:03:14]} Bxf5 {[%emt 0:00:56]} 41. exf5 {[%emt 0:00:11]} ({Of course not} 41. Bxf5 Nb6 $15) 41... Ke7 $2 {[%emt 0:05:24][%mdl 8192] [#] Loses the game.} (41... Nh7 $11 {and Black is okay.}) 42. Bh5 $1 $18 {[%emt 0:00:39]} Nd7 {[%emt 0:02:47]} 43. Bxe8 {[%emt 0:00:19]} Kxe8 {[%emt 0:00:04][%mdl 4096] Endgame KRN-KNN} 44. Ne4 {[%emt 0:00:18]} Ndb6 {[%emt 0:03:26]} 45. Nxg5 {[%emt 0:00:46]} (45. Rh3 $142) 45... Nd5 {[%emt 0:00:50] Strongly threatening ...Nf4+.} 46. Rd1 {[%emt 0:00:30]} Nd6 {[%emt 0:00:39]} 47. Re1 {[%emt 0:00:27]} Nxf5 {[%emt 0:02:49]} 48. Rxe5+ {[%emt 0:00:08]} Nfe7 {[%emt 0:00:04]} 49. Ne4 {[%emt 0:00:57]} Kd7 {[%emt 0:00:22]} 50. Nc5+ {[%emt 0:00:21]} Kc7 {[%emt 0:00:41]} 51. Kg3 {[%emt 0:00:25]} b6 {[%emt 0:00:24]} 52. Nd3 {[%emt 0:00:11]} Kd6 {[%emt 0:04:15]} 53. f4 {[%emt 0:00:35] Hoping for f5.} Nxf4 {[%emt 0:01:25]} (53... c5 54. bxc5+ bxc5) 54. Kxf4 {[%emt 0:00:29][%cal Oe5e7] White threatens Rxe7! and mate.} Ng6+ {[%emt 0:00:04]} 55. Ke4 {[%emt 0:00:03] White mates.} Nxe5 {[%emt 0:00:02]} 56. Nxe5 {[%emt 0:00:04] KN-K3P} a5 {[%emt 0:03:18]} 57. Nc4+ {[%emt 0:00:29]} Kc7 {[%emt 0:00:07]} 58. bxa5 {[%emt 0:00:22]} b5 {[%emt 0:00:08]} 59. Ne5 {[%emt 0:00:36]} c5 {[%emt 0:00:37]} 60. Kd5 {[%emt 0:00:20]} b4 {[%emt 0:00:31]} 61. axb4 {[%emt 0:00:25]} cxb4 {[%emt 0:00:04] Weighted Error Value: White=0.15 (very precise) /Black=0.32} 1-0

[Event "Kvika Banki League Iceland 2022-23"]
[Site "Reykjavik"]
[Date "2022.10.15"]
[Round "4.23"]
[White "Finnsson, Johann Arnar"]
[Black "Mai, Alexander Oliver"]
[Result "1/2-1/2"]
[ECO "A11"]
[WhiteElo "1891"]
[BlackElo "2183"]
[Annotator "TA"]
[PlyCount "111"]
[EventDate "2022.10.13"]
[EventType "team-tourn"]
[EventCountry "ISL"]
[SourceTitle "playchess.com"]
[Source "ChessBase"]
[SourceQuality "1"]
[TimeControl "5400+30"]

{[%evp 9,111,-13,-9,-9,12,0,0,0,0,0,0,0,9,-14,-18,-16,-12,-25,-14,-10,0,-20,-19,-16,-4,-28,-16,-31,-17,-25,-26,-58,-38,-65,-73,-110,-6,0,-22,-68,-18,-33,-14,-28,0,0,0,0,0,0,0,0,0,0,7,0,8,8,8,8,8,8,8,8,18,18,18,18,18,18,23,4,5,0,0,0,0,0,0,0,0,0,6,0,0,0,0,0,8,0,0,0,0,0,0,0,0,0,0,0,0,0,0,0]} 1. g3 {[%emt 0:00:03]} d5 {[%emt 0:00:51]} 2. Nf3 {[%emt 0:00:05]} c6 {[%emt 0:01:16]} 3. Bg2 {[%emt 0:00:06]} Bg4 {[%emt 0:00:05]} 4. c4 {[%emt 0:00:12]} e6 {[%emt 0:00:15]} 5. h3 {[%emt 0:05:33]} Bxf3 {[%emt 0:01:50]} 6. Bxf3 {[%emt 0:00:06] A11: English Opening: 1...c6.} Nd7 {[%emt 0:00:50]} 7. cxd5 {[%emt 0:01:06]} exd5 {[%emt 0:00:18]} 8. d3 {[%emt 0:00:29]} Ngf6 {[%emt 0:00:39]} 9. O-O {[%emt 0:00:23]} Bd6 {[%emt 0:01:40]} 10. Nc3 {[%emt 0:02:30]} O-O {[%emt 0:00:42] [#]} 11. Re1 $146 {[%emt 0:04:40]} ({Predecessor:} 11. e4 dxe4 12. dxe4 Ne5 13. Bg2 Bc5 14. Qe2 Qd3 15. Bg5 Qxe2 16. Nxe2 Nd3 17. Rad1 Rad8 18. Nc3 h6 19. Bxf6 gxf6 {½-½ (62) Mendonca,L (2452)-Sebag,M (2438) Chess.com INT 2020}) 11... d4 {[%emt 0:04:06]} 12. Ne4 {[%emt 0:00:52]} Nxe4 {[%emt 0:00:27]} 13. Bxe4 {[%emt 0:00:09]} Nc5 {[%emt 0:04:40][%cal Bd7c5,Bc5e6,Be6c7,Bc7b5][%mdl 32]} 14. Bg2 {[%emt 0:01:18]} Ne6 {[%emt 0:00:40]} 15. a3 {[%emt 0:08:48]} a5 {[%emt 0:01:35]} 16. Bd2 {[%emt 0:00:29]} a4 {[%emt 0:03:36]} 17. b4 {[%emt 0:02:50]} Qd7 {[%emt 0:08:06]} 18. h4 {[%emt 0:06:05]} Nc7 {[%emt 0:04:10]} 19. Qc2 {[%emt 0:04:25]} Nb5 {[%emt 0:04:02]} 20. Bc1 {[%emt 0:03:28]} Kh8 {[%emt 0:01:42]} (20... f5 $5 {[%cal Rf5f4]}) 21. e4 {[%emt 0:01:18]} dxe3 $1 {[%emt 0:01:11]} 22. Rxe3 {[%emt 0:00:09] [#]} Bc7 {[%emt 0:01:35]} ({Black should try} 22... f5 $1 $17 {aiming for ...Nd4.} 23. f4 Bb8) 23. Bb2 $11 {[%emt 0:00:20]} Bb6 {[%emt 0:00:36]} 24. Re5 {[%emt 0:07:23]} (24. d4 $11 {is superior.}) 24... f6 {[%emt 0:02:30]} (24... Bd4 $15 25. Re2 Bxb2 26. Qxb2 Rfe8) 25. Re2 $1 {[%emt 0:02:26]} Bd4 {[%emt 0:08:34]} 26. Rae1 {[%emt 0:02:13]} Bxb2 {[%emt 0:04:30]} (26... Qf7 $5 {[%cal Rf7b3]}) 27. Qxb2 {[%emt 0:00:08]} Rae8 {[%emt 0:09:48] Against Re7} 28. Rxe8 {[%emt 0:04:10]} Rxe8 {[%emt 0:00:06]} 29. Rxe8+ {[%emt 0:00:11]} Qxe8 {[%emt 0:00:02][%mdl 4096] Endgame KQB-KQN} 30. Be4 {[%emt 0:00:20]} Qe5 {[%emt 0:03:21]} 31. Qc2 {[%emt 0:00:23]} ({Don't go for} 31. Qxe5 $2 fxe5 32. Kf1 Nxa3 $19) 31... g6 {[%emt 0:16:38]} 32. Kg2 {[%emt 0:02:39]} Qc3 {[%emt 0:04:07]} (32... Nxa3 $2 33. Qxa4 f5 34. Bf3 $18 (34. Qxa3 fxe4 35. Qa8+ Kg7 $18) (34. Qa8+ Kg7 $18)) 33. Qxa4 {[%emt 0:06:17] [#] And now Qa8+ would win.} Qxa3 {[%emt 0:00:17]} 34. Qxa3 {[%emt 0:03:06]} Nxa3 {[%emt 0:00:02] KB-KN} 35. d4 $1 {[%emt 0:00:11]} Nb5 {[%emt 0:01:01]} 36. d5 $1 {[%emt 0:00:07]} cxd5 {[%emt 0:00:16]} 37. Bxd5 {[%emt 0:00:11]} b6 {[%emt 0:05:39]} 38. Kf3 {[%emt 0:00:16]} Kg7 {[%emt 0:00:21]} 39. Ke3 {[%emt 0:01:19]} Kf8 {[%emt 0:00:44]} 40. f4 {[%emt 0:01:02]} Nc7 {[%emt 0:01:22] The position is equal.} 41. Bc4 {[%emt 0:00:31]} b5 {[%emt 0:02:08]} 42. Bd3 {[%emt 0:00:43]} Nd5+ {[%emt 0:00:31]} 43. Kf3 {[%emt 0:00:47]} Nxb4 {[%emt 0:00:32]} 44. Bxb5 {[%emt 0:00:09]} Nd5 {[%emt 0:00:26]} 45. g4 {[%emt 0:00:26][%cal Bg3g4,Bg4g5][%mdl 32]} h6 {[%emt 0:01:12]} 46. g5 {[%emt 0:00:19]} Kg7 {[%emt 0:00:24]} 47. Bc4 {[%emt 0:00:32]} Ne7 {[%emt 0:00:34]} 48. Be6 {[%emt 0:00:39]} Nc6 {[%emt 0:00:35] Strongly threatening ...Nd4+.} 49. Bd5 {[%emt 0:00:46]} Nd4+ {[%emt 0:00:20]} 50. Kg4 {[%emt 0:00:50]} Nf5 {[%emt 0:01:11] Hoping for ...Ne3+.} 51. Be6 {[%emt 0:00:27]} h5+ {[%emt 0:02:32]} 52. Kh3 {[%emt 0:00:09]} Nd4 {[%emt 0:00:18]} 53. Bc4 {[%emt 0:00:27]} Nf5 {[%emt 0:00:25]} 54. Be6 {[%emt 0:00:17]} Nd4 {[%emt 0:01:14]} 55. Bc4 {[%emt 0:00:08]} Nf5 {[%emt 0:00:53]} 56. Be6 {[%emt 0:00:08] Weighted Error Value: White=0.06 (flawless) /Black=0.07 (flawless)} 1/2-1/2

[Event "Kvika Banki League Iceland 2022-23"]
[Site "Reykjavik"]
[Date "2022.10.16"]
[Round "5.1"]
[White "Oleksiyenko, Mykhaylo"]
[Black "Lomasov, Semyon"]
[Result "1-0"]
[ECO "C07"]
[WhiteElo "2592"]
[BlackElo "2541"]
[Annotator "TA"]
[PlyCount "103"]
[EventDate "2022.10.13"]
[EventType "team-tourn"]
[EventCountry "ISL"]
[SourceTitle "playchess.com"]
[Source "ChessBase"]
[SourceQuality "1"]
[TimeControl "5400+30"]

{[%evp 13,103,0,0,0,0,-6,-5,0,-8,-29,-4,-13,0,0,0,0,19,30,31,0,0,0,0,0,28,0,26,20,25,27,14,25,21,0,0,0,10,0,0,0,7,14,70,80,70,74,66,83,84,84,93,56,62,65,57,61,62,69,88,83,87,87,87,87,93,93,94,94,97,77,121,130,130,118,253,282,273,235,267,263,294,131,124,134,525,525,502,295,518,507,447,408]} 1. e4 {[%emt 0:00:04]} e6 {[%emt 0:00:14]} 2. d4 {[%emt 0:00:06]} d5 {[%emt 0:00:03]} 3. Nd2 {[%emt 0:00:08]} c5 {[%emt 0:00:03]} 4. Ngf3 {[%emt 0:00:12]} cxd4 {[%emt 0:00:17]} 5. Nxd4 {[%emt 0:00:05]} Nf6 {[%emt 0:00:03]} 6. e5 {[%emt 0:00:26]} Nfd7 {[%emt 0:00:06]} 7. N2f3 {[%emt 0:00:04]} Nc6 {[%emt 0:01:25]} 8. Bf4 $1 {[%emt 0:00:05][%mdl 4] outshines the older 8.Nxc6. C07: French Tarrasch: 3...c5, 4 Ngf3 and 4 exd5 Qxd5.} Be7 {[%emt 0:02:18] is the legacy move (8...Qb6).} 9. Bb5 {[%emt 0:00:07][%cal Bf1b5,Bb5a4,Ba4b3][%mdl 32]} Qb6 {[%emt 0:01:40]} 10. c3 {[%emt 0:00:10] The position is equal.} a6 {[%emt 0:03:35]} 11. Ba4 {[%emt 0:01:05]} Nc5 {[%emt 0:19:50] [#]} 12. Bb3 $146 {[%emt 0:05:15]} ({Predecessor:} 12. Bc2 Qxb2 13. O-O Qb6 14. Nxc6 Qxc6 15. Nd4 Qc7 16. Qg4 g5 17. Bd2 Bd7 18. f4 {½-½ (30) Can,I (2445)-Markidis,K (2259) Kavala 2022}) 12... Bd7 {[%emt 0:21:10][%cal Bc8d7,Bd7b5,Bb5d3,Bd3e4,Be4d5][%mdl 32]} 13. O-O {[%emt 0:02:18]} Nxd4 {[%emt 0:04:25]} 14. Nxd4 {[%emt 0:03:57]} Bb5 {[%emt 0:04:20]} 15. Re1 {[%emt 0:07:51]} Bd3 {[%emt 0:17:45]} 16. Ba4+ {[%emt 0:09:52]} (16. Bxd5 $5 {[%cal Rb2b4]} Bg6 17. Bf3 $11) 16... Nxa4 {[%emt 0:00:29]} 17. Qxa4+ {[%emt 0:00:26]} Kf8 {[%emt 0:00:05]} 18. Red1 {[%emt 0:15:47]} Be4 {[%emt 0:05:16]} 19. c4 {[%emt 0:02:51]} (19. f3 $5 {[%cal Rf3e4]} Bg6 20. c4 $11) 19... Rc8 {[%emt 0:01:05]} 20. Rac1 {[%emt 0:04:56] cxd5 is the strong threat.} dxc4 {[%emt 0:00:36]} 21. Rxc4 {[%emt 0:01:13]} Rxc4 {[%emt 0:00:05]} 22. Qxc4 {[%emt 0:00:02] White threatens Qc8+ and mate.} Bd5 {[%emt 0:00:03]} 23. Qc8+ {[%emt 0:03:22]} Qd8 {[%emt 0:00:06]} 24. Qc3 {[%emt 0:00:50]} h6 {[%emt 0:02:25]} 25. Nc2 {[%emt 0:03:35]} g5 {[%emt 0:03:34]} 26. Be3 {[%emt 0:00:38]} Kg7 {[%emt 0:00:22]} 27. Nb4 {[%emt 0:04:24]} Qc8 {[%emt 0:02:20]} (27... Bxb4 $11 28. Qxb4 Qg8) 28. Nxd5 $14 {[%emt 0:03:24]} exd5 {[%emt 0:00:01]} 29. Rxd5 {[%emt 0:00:42]} (29. Qb3 {is more complex.} Rd8 30. h3 Bc5 31. Bxc5 Qxc5 32. Qxb7 Qc2 33. Re1) 29... Qxc3 {[%emt 0:03:45]} 30. bxc3 {[%emt 0:00:13][%mdl 4096] Endgame KRB-KRB} Rc8 {[%emt 0:00:05]} 31. Rd7 {[%emt 0:03:00][%csl LRb7,LRe7]} Kf8 {[%emt 0:00:36]} 32. Bd4 {[%emt 0:03:26] White is more active.} b5 {[%emt 0:03:26]} 33. Kf1 {[%emt 0:04:11]} b4 {[%emt 0:01:06]} 34. cxb4 {[%emt 0:00:23]} Bxb4 {[%emt 0:00:02]} 35. g3 {[%emt 0:07:58]} Rc2 {[%emt 0:01:07]} 36. a4 {[%emt 0:00:52]} g4 {[%emt 0:00:34]} 37. Be3 {[%emt 0:06:44]} h5 {[%emt 0:00:19]} 38. e6 {[%emt 0:02:43]} fxe6 {[%emt 0:00:11]} 39. Rh7 {[%emt 0:00:06]} Rc4 {[%emt 0:03:16]} 40. Rxh5 {[%emt 0:00:17]} Kf7 {[%emt 0:00:18]} 41. Ke2 {[%emt 0:02:05]} Kg6 {[%emt 0:01:08]} 42. Rg5+ {[%emt 0:01:15]} Kf6 {[%emt 0:00:01]} 43. Rg8 $1 {[%emt 0:00:29]} Kf5 {[%emt 0:01:06]} (43... Be7 $16) 44. Kd3 $1 $18 {[%emt 0:01:59]} Rc3+ {[%emt 0:00:51]} 45. Kd4 {[%emt 0:00:04]} e5+ {[%emt 0:00:53]} 46. Kd5 {[%emt 0:00:03]} Be7 {[%emt 0:00:15] Prevents Rg5+.} 47. Ra8 {[%emt 0:01:05]} (47. Re8 $18 Rd3+ 48. Kc4) 47... Rd3+ $16 {[%emt 0:00:39] [#]} 48. Kc6 $1 {[%emt 0:00:42] Threatens to win with a5.} Bg5 $2 {[%emt 0:00:24][%mdl 8192]} (48... Bb4 $16 {is more resistant.} 49. Rxa6 Be1) 49. Rf8+ $18 {[%emt 0:01:18]} Bf6 {[%emt 0:00:10]} 50. Kb7 {[%emt 0:00:46]} Ra3 $2 {[%emt 0:01:00]} (50... a5 51. Bb6 Ke6 52. Re8+ (52. Bxa5 Rd4 $14) 52... Kf5) 51. Bb6 {[%emt 0:00:13]} ({And not} 51. Kxa6 Rxa4+ 52. Kb5 Ra1 $11) 51... Ke6 {[%emt 0:00:32] [#]} 52. a5 $1 {[%emt 0:00:06] Weighted Error Value: White=0.13 (very precise) /Black=0.32} 1-0